Workbook

Sheet Capa (hidden)

Sheet 1_Causas_Levantadas (hidden)
C4: # Causa | D4: Causa
C5: =IF(D5="","",1) -> 1 | D5: Causa exemplo 1 | E5: =COUNT(C5:C200)-1 -> 11
C6: =IFERROR(IF(D6="","",C5+1),"Erro") -> 2 | D6: Causa exemplo 2
C7: =IFERROR(IF(D7="","",C6+1),"Erro") -> 3 | D7: Causa exemplo 3
C8: 4 | D8: Causa exemplo 4
C9: 5 | D9: Causa exemplo 5
C10: 6 | D10: Causa exemplo 6
C11: 7 | D11: Causa exemplo 7
C12: 8 | D12: Causa exemplo 8
C13: 9 | D13: Causa exemplo 9
C14: 10 | D14: Causa exemplo 10
C15: 11 | D15: Causa exemplo 11
C16: 12 | D16: Causa exemplo 12
C71: =IFERROR(IF(D71="","",C70+1),"Erro") -> 
C135: =IFERROR(IF(D135="","",C134+1),"Erro") -> 
C199: =IFERROR(IF(D199="","",C198+1),"Erro") -> 

Sheet 2_Notas_votacao (hidden)
B4: Instruções para priorização: | H4: Total causas | I4: =COUNTA('1_Causas_Levantadas'!$D$5:$D$200) -> 12
B5: 1. Informe o número de participantes abaixo: 2. As notas devem ser dadas e distribuídas de acordo com a tabela abaixo: | H5: Causas/part | I5: =COUNTA('1_Causas_Levantadas'!$D$5:$D$200) -> 12
I7: devem ter/partic | J7: Devem ter total | K7: têm | L7: check
H8: Notas 10 | I8: =ROUNDDOWN(I5*20%,0) -> 2 | J8: =I8*$C$9 -> 14 | K8: =COUNTIF('4_Base_votacao'!F:F,10) -> 3 | L8: =IF(K8=J8,1,0) -> 0
C9: 7 | H9: Notas 5 | I9: =ROUND(I5*30%,0) -> 4 | J9: =I9*$C$9 -> 28 | K9: =COUNTIF('4_Base_votacao'!F:F,5) -> 3 | L9: =IF(K9=J9,1,0) -> 0
H10: Notas 3 | I10: =I5-SUM(I8:I9) -> 6 | J10: =I10*$C$9 -> 42 | K10: =COUNTIF('4_Base_votacao'!F:F,3) -> 6 | L10: =IF(K10=J10,1,0) -> 0

Sheet 3_Ordem_Votacao (hidden)
B4: # Causa | C4: Causa
B5: 1 | C5: Causa exemplo 1
B6: 2 | C6: Causa exemplo 2
B7: 3 | C7: Causa exemplo 3
B8: 4 | C8: Causa exemplo 4
B9: 5 | C9: Causa exemplo 5
B10: 6 | C10: Causa exemplo 6
B11: 7 | C11: Causa exemplo 7
B12: 8 | C12: Causa exemplo 8
B13: 9 | C13: Causa exemplo 9
B14: 10 | C14: Causa exemplo 10
B15: 11 | C15: Causa exemplo 11
B16: 12 | C16: Causa exemplo 12
C17: (vazio)

Sheet 4_Base_votacao (hidden)
C4: Causa | D4: # Causa | E4: Participante | F4: Nota | G4: ='1_Causas_Levantadas'!$E$5+1 -> 12 | H4: ='2_Notas_votacao'!C9 -> 7
C5: =IFERROR(VLOOKUP(D5,'1_Causas_Levantadas'!C:D,2,0),"") -> Causa exemplo 1 | D5: =IF(K5<=$H$4,(IF(G4>0,G5,$G$5)),"") -> 1 | E5: =IF(D5<>"","Participante "&K5,"") -> Participante 1 | F5: 10 | G5: =J5 -> 1 | H5: ='2_Notas_votacao'!C9 -> 7 | I5: 1 | J5: 1 | K5: =I5 -> 1
C6: =IFERROR(VLOOKUP(D6,'1_Causas_Levantadas'!C:D,2,0),"") -> Causa exemplo 2 | D6: =IF(K6<=$H$4,(IF(G5>0,G6,$G$5)),"") -> 2 | E6: =IF(D6<>"","Participante "&K6,"") -> Participante 1 | F6: 10 | G6: =J6 -> 2 | I6: =IF(G6=$G$5,1,0) -> 0 | J6: =IF(G5<$G$4,J5+1,1) -> 2 | K6: =I6+K5 -> 1
C7: =IFERROR(VLOOKUP(D7,'1_Causas_Levantadas'!C:D,2,0),"") -> Causa exemplo 3 | D7: 3 | E7: Participante 1 | F7: 10 | G7: 3 | I7: 0 | J7: =IF(G6<$G$4,J6+1,1) -> 3 | K7: 1
C8: =IFERROR(VLOOKUP(D8,'1_Causas_Levantadas'!C:D,2,0),"") -> Causa exemplo 4 | D8: 4 | E8: Participante 1 | F8: 5 | G8: 4 | I8: 0 | J8: 4 | K8: 1
C9: =IFERROR(VLOOKUP(D9,'1_Causas_Levantadas'!C:D,2,0),"") -> Causa exemplo 5 | D9: 5 | E9: Participante 1 | F9: 5 | G9: 5 | I9: 0 | J9: 5 | K9: 1
C10: =IFERROR(VLOOKUP(D10,'1_Causas_Levantadas'!C:D,2,0),"") -> Causa exemplo 6 | D10: 6 | E10: Participante 1 | F10: 5 | G10: 6 | I10: 0 | J10: 6 | K10: 1
C11: =IFERROR(VLOOKUP(D11,'1_Causas_Levantadas'!C:D,2,0),"") -> Causa exemplo 7 | D11: 7 | E11: Participante 1 | F11: 3 | G11: 7 | I11: 0 | J11: 7 | K11: 1
C12: =IFERROR(VLOOKUP(D12,'1_Causas_Levantadas'!C:D,2,0),"") -> Causa exemplo 8 | D12: 8 | E12: Participante 1 | F12: 3 | G12: 8 | I12: 0 | J12: 8 | K12: 1
C13: =IFERROR(VLOOKUP(D13,'1_Causas_Levantadas'!C:D,2,0),"") -> Causa exemplo 9 | D13: 9 | E13: Participante 1 | F13: 3 | G13: 9 | I13: 0 | J13: 9 | K13: 1
C14: =IFERROR(VLOOKUP(D14,'1_Causas_Levantadas'!C:D,2,0),"") -> Causa exemplo 10 | D14: 10 | E14: Participante 1 | F14: 3 | G14: 10 | I14: 0 | J14: 10 | K14: 1
C15: =IFERROR(VLOOKUP(D15,'1_Causas_Levantadas'!C:D,2,0),"") -> Causa exemplo 11 | D15: 11 | E15: Participante 1 | F15: 3 | G15: 11 | I15: 0 | J15: 11 | K15: 1
C16: =IFERROR(VLOOKUP(D16,'1_Causas_Levantadas'!C:D,2,0),"") -> Causa exemplo 12 | D16: 12 | E16: Participante 1 | F16: 3 | G16: 12 | I16: 0 | J16: 12 | K16: 1
C17: =IFERROR(VLOOKUP(D17,'1_Causas_Levantadas'!C:D,2,0),"") -> Causa exemplo 1 | D17: 1 | E17: Participante 2 | G17: 1 | I17: 1 | J17: 1 | K17: 2
C18: =IFERROR(VLOOKUP(D18,'1_Causas_Levantadas'!C:D,2,0),"") -> Causa exemplo 2 | D18: 2 | E18: Participante 2 | G18: 2 | I18: 0 | J18: 2 | K18: 2
C19: =IFERROR(VLOOKUP(D19,'1_Causas_Levantadas'!C:D,2,0),"") -> Causa exemplo 3 | D19: 3 | E19: Participante 2 | G19: 3 | I19: 0 | J19: 3 | K19: 2
C20: =IFERROR(VLOOKUP(D20,'1_Causas_Levantadas'!C:D,2,0),"") -> Causa exemplo 4 | D20: 4 | E20: Participante 2 | G20: 4 | I20: 0 | J20: 4 | K20: 2
C21: =IFERROR(VLOOKUP(D21,'1_Causas_Levantadas'!C:D,2,0),"") -> Causa exemplo 5 | D21: 5 | E21: Participante 2 | G21: 5 | I21: 0 | J21: 5 | K21: 2
C22: =IFERROR(VLOOKUP(D22,'1_Causas_Levantadas'!C:D,2,0),"") -> Causa exemplo 6 | D22: 6 | E22: Participante 2 | G22: 6 | I22: 0 | J22: 6 | K22: 2
C23: =IFERROR(VLOOKUP(D23,'1_Causas_Levantadas'!C:D,2,0),"") -> Causa exemplo 7 | D23: 7 | E23: Participante 2 | G23: 7 | I23: 0 | J23: 7 | K23: 2
C24: =IFERROR(VLOOKUP(D24,'1_Causas_Levantadas'!C:D,2,0),"") -> Causa exemplo 8 | D24: 8 | E24: Participante 2 | G24: 8 | I24: 0 | J24: 8 | K24: 2
C25: =IFERROR(VLOOKUP(D25,'1_Causas_Levantadas'!C:D,2,0),"") -> Causa exemplo 9 | D25: 9 | E25: Participante 2 | G25: 9 | I25: 0 | J25: 9 | K25: 2
C26: =IFERROR(VLOOKUP(D26,'1_Causas_Levantadas'!C:D,2,0),"") -> Causa exemplo 10 | D26: 10 | E26: Participante 2 | G26: 10 | I26: 0 | J26: 10 | K26: 2
C27: =IFERROR(VLOOKUP(D27,'1_Causas_Levantadas'!C:D,2,0),"") -> Causa exemplo 11 | D27: 11 | E27: Participante 2 | G27: 11 | I27: 0 | J27: 11 | K27: 2
C28: =IFERROR(VLOOKUP(D28,'1_Causas_Levantadas'!C:D,2,0),"") -> Causa exemplo 12 | D28: 12 | E28: Participante 2 | G28: 12 | I28: 0 | J28: 12 | K28: 2
C29: =IFERROR(VLOOKUP(D29,'1_Causas_Levantadas'!C:D,2,0),"") -> Causa exemplo 1 | D29: 1 | E29: Participante 3 | G29: 1 | I29: 1 | J29: 1 | K29: 3
C30: =IFERROR(VLOOKUP(D30,'1_Causas_Levantadas'!C:D,2,0),"") -> Causa exemplo 2 | D30: 2 | E30: Participante 3 | G30: 2 | I30: 0 | J30: 2 | K30: 3
C31: =IFERROR(VLOOKUP(D31,'1_Causas_Levantadas'!C:D,2,0),"") -> Causa exemplo 3 | D31: 3 | E31: Participante 3 | G31: 3 | I31: 0 | J31: 3 | K31: 3
C32: =IFERROR(VLOOKUP(D32,'1_Causas_Levantadas'!C:D,2,0),"") -> Causa exemplo 4 | D32: 4 | E32: Participante 3 | G32: 4 | I32: 0 | J32: 4 | K32: 3
C33: =IFERROR(VLOOKUP(D33,'1_Causas_Levantadas'!C:D,2,0),"") -> Causa exemplo 5 | D33: 5 | E33: Participante 3 | G33: 5 | I33: 0 | J33: 5 | K33: 3
C34: =IFERROR(VLOOKUP(D34,'1_Causas_Levantadas'!C:D,2,0),"") -> Causa exemplo 6 | D34: 6 | E34: Participante 3 | G34: 6 | I34: 0 | J34: 6 | K34: 3
C35: =IFERROR(VLOOKUP(D35,'1_Causas_Levantadas'!C:D,2,0),"") -> Causa exemplo 7 | D35: 7 | E35: Participante 3 | G35: 7 | I35: 0 | J35: 7 | K35: 3
C36: =IFERROR(VLOOKUP(D36,'1_Causas_Levantadas'!C:D,2,0),"") -> Causa exemplo 8 | D36: 8 | E36: Participante 3 | G36: 8 | I36: 0 | J36: 8 | K36: 3
C37: =IFERROR(VLOOKUP(D37,'1_Causas_Levantadas'!C:D,2,0),"") -> Causa exemplo 9 | D37: 9 | E37: Participante 3 | G37: 9 | I37: 0 | J37: 9 | K37: 3
C38: =IFERROR(VLOOKUP(D38,'1_Causas_Levantadas'!C:D,2,0),"") -> Causa exemplo 10 | D38: 10 | E38: Participante 3 | G38: 10 | I38: 0 | J38: 10 | K38: 3
C39: =IFERROR(VLOOKUP(D39,'1_Causas_Levantadas'!C:D,2,0),"") -> Causa exemplo 11 | D39: 11 | E39: Participante 3 | G39: 11 | I39: 0 | J39: 11 | K39: 3
C40: =IFERROR(VLOOKUP(D40,'1_Causas_Levantadas'!C:D,2,0),"") -> Causa exemplo 12 | D40: 12 | E40: Participante 3 | G40: 12 | I40: 0 | J40: 12 | K40: 3
C41: =IFERROR(VLOOKUP(D41,'1_Causas_Levantadas'!C:D,2,0),"") -> Causa exemplo 1 | D41: 1 | E41: Participante 4 | G41: 1 | I41: 1 | J41: 1 | K41: 4
C42: =IFERROR(VLOOKUP(D42,'1_Causas_Levantadas'!C:D,2,0),"") -> Causa exemplo 2 | D42: 2 | E42: Participante 4 | G42: 2 | I42: 0 | J42: 2 | K42: 4
C43: =IFERROR(VLOOKUP(D43,'1_Causas_Levantadas'!C:D,2,0),"") -> Causa exemplo 3 | D43: 3 | E43: Participante 4 | G43: 3 | I43: 0 | J43: 3 | K43: 4
C44: =IFERROR(VLOOKUP(D44,'1_Causas_Levantadas'!C:D,2,0),"") -> Causa exemplo 4 | D44: 4 | E44: Participante 4 | G44: 4 | I44: 0 | J44: 4 | K44: 4
C45: =IFERROR(VLOOKUP(D45,'1_Causas_Levantadas'!C:D,2,0),"") -> Causa exemplo 5 | D45: 5 | E45: Participante 4 | G45: 5 | I45: 0 | J45: 5 | K45: 4
C46: =IFERROR(VLOOKUP(D46,'1_Causas_Levantadas'!C:D,2,0),"") -> Causa exemplo 6 | D46: 6 | E46: Participante 4 | G46: 6 | I46: 0 | J46: 6 | K46: 4
C47: =IFERROR(VLOOKUP(D47,'1_Causas_Levantadas'!C:D,2,0),"") -> Causa exemplo 7 | D47: 7 | E47: Participante 4 | G47: 7 | I47: 0 | J47: 7 | K47: 4
C48: =IFERROR(VLOOKUP(D48,'1_Causas_Levantadas'!C:D,2,0),"") -> Causa exemplo 8 | D48: 8 | E48: Participante 4 | G48: 8 | I48: 0 | J48: 8 | K48: 4
C49: =IFERROR(VLOOKUP(D49,'1_Causas_Levantadas'!C:D,2,0),"") -> Causa exemplo 9 | D49: 9 | E49: Participante 4 | G49: 9 | I49: 0 | J49: 9 | K49: 4
C50: =IFERROR(VLOOKUP(D50,'1_Causas_Levantadas'!C:D,2,0),"") -> Causa exemplo 10 | D50: 10 | E50: Participante 4 | G50: 10 | I50: 0 | J50: 10 | K50: 4
C51: =IFERROR(VLOOKUP(D51,'1_Causas_Levantadas'!C:D,2,0),"") -> Causa exemplo 11 | D51: 11 | E51: Participante 4 | G51: 11 | I51: 0 | J51: 11 | K51: 4
C52: =IFERROR(VLOOKUP(D52,'1_Causas_Levantadas'!C:D,2,0),"") -> Causa exemplo 12 | D52: 12 | E52: Participante 4 | G52: 12 | I52: 0 | J52: 12 | K52: 4
C53: =IFERROR(VLOOKUP(D53,'1_Causas_Levantadas'!C:D,2,0),"") -> Causa exemplo 1 | D53: 1 | E53: Participante 5 | G53: 1 | I53: 1 | J53: 1 | K53: 5
C54: =IFERROR(VLOOKUP(D54,'1_Causas_Levantadas'!C:D,2,0),"") -> Causa exemplo 2 | D54: 2 | E54: Participante 5 | G54: 2 | I54: 0 | J54: 2 | K54: 5
C55: =IFERROR(VLOOKUP(D55,'1_Causas_Levantadas'!C:D,2,0),"") -> Causa exemplo 3 | D55: 3 | E55: Participante 5 | G55: 3 | I55: 0 | J55: 3 | K55: 5
C56: =IFERROR(VLOOKUP(D56,'1_Causas_Levantadas'!C:D,2,0),"") -> Causa exemplo 4 | D56: 4 | E56: Participante 5 | G56: 4 | I56: 0 | J56: 4 | K56: 5
C57: =IFERROR(VLOOKUP(D57,'1_Causas_Levantadas'!C:D,2,0),"") -> Causa exemplo 5 | D57: 5 | E57: Participante 5 | G57: 5 | I57: 0 | J57: 5 | K57: 5
C58: =IFERROR(VLOOKUP(D58,'1_Causas_Levantadas'!C:D,2,0),"") -> Causa exemplo 6 | D58: 6 | E58: Participante 5 | G58: 6 | I58: 0 | J58: 6 | K58: 5
C59: =IFERROR(VLOOKUP(D59,'1_Causas_Levantadas'!C:D,2,0),"") -> Causa exemplo 7 | D59: 7 | E59: Participante 5 | G59: 7 | I59: 0 | J59: 7 | K59: 5
C60: =IFERROR(VLOOKUP(D60,'1_Causas_Levantadas'!C:D,2,0),"") -> Causa exemplo 8 | D60: 8 | E60: Participante 5 | G60: 8 | I60: 0 | J60: 8 | K60: 5
C61: =IFERROR(VLOOKUP(D61,'1_Causas_Levantadas'!C:D,2,0),"") -> Causa exemplo 9 | D61: 9 | E61: Participante 5 | G61: 9 | I61: 0 | J61: 9 | K61: 5
C62: =IFERROR(VLOOKUP(D62,'1_Causas_Levantadas'!C:D,2,0),"") -> Causa exemplo 10 | D62: 10 | E62: Participante 5 | G62: 10 | I62: 0 | J62: 10 | K62: 5
C63: =IFERROR(VLOOKUP(D63,'1_Causas_Levantadas'!C:D,2,0),"") -> Causa exemplo 11 | D63: 11 | E63: Participante 5 | G63: 11 | I63: 0 | J63: 11 | K63: 5
C64: =IFERROR(VLOOKUP(D64,'1_Causas_Levantadas'!C:D,2,0),"") -> Causa exemplo 12 | D64: 12 | E64: Participante 5 | G64: 12 | I64: 0 | J64: 12 | K64: 5
C65: =IFERROR(VLOOKUP(D65,'1_Causas_Levantadas'!C:D,2,0),"") -> Causa exemplo 1 | D65: 1 | E65: Participante 6 | G65: 1 | I65: 1 | J65: 1 | K65: 6
C66: =IFERROR(VLOOKUP(D66,'1_Causas_Levantadas'!C:D,2,0),"") -> Causa exemplo 2 | D66: 2 | E66: Participante 6 | G66: 2 | I66: 0 | J66: 2 | K66: 6
C67: =IFERROR(VLOOKUP(D67,'1_Causas_Levantadas'!C:D,2,0),"") -> Causa exemplo 3 | D67: 3 | E67: Participante 6 | G67: 3 | I67: 0 | J67: 3 | K67: 6
C68: =IFERROR(VLOOKUP(D68,'1_Causas_Levantadas'!C:D,2,0),"") -> Causa exemplo 4 | D68: 4 | E68: Participante 6 | G68: 4 | I68: 0 | J68: 4 | K68: 6
C69: =IFERROR(VLOOKUP(D69,'1_Causas_Levantadas'!C:D,2,0),"") -> Causa exemplo 5 | D69: 5 | E69: Participante 6 | G69: 5 | I69: 0 | J69: 5 | K69: 6
C70: =IFERROR(VLOOKUP(D70,'1_Causas_Levantadas'!C:D,2,0),"") -> Causa exemplo 6 | D70: =IF(K70<=$H$4,(IF(G69>0,G70,$G$5)),"") -> 6 | E70: =IF(D70<>"","Participante "&K70,"") -> Participante 6 | G70: =J70 -> 6 | I70: =IF(G70=$G$5,1,0) -> 0 | J70: 6 | K70: =I70+K69 -> 6
C71: =IFERROR(VLOOKUP(D71,'1_Causas_Levantadas'!C:D,2,0),"") -> Causa exemplo 7 | D71: 7 | E71: Participante 6 | G71: 7 | I71: 0 | J71: =IF(G70<$G$4,J70+1,1) -> 7 | K71: 6
C72: =IFERROR(VLOOKUP(D72,'1_Causas_Levantadas'!C:D,2,0),"") -> Causa exemplo 8 | D72: 8 | E72: Participante 6 | G72: 8 | I72: 0 | J72: 8 | K72: 6
C73: =IFERROR(VLOOKUP(D73,'1_Causas_Levantadas'!C:D,2,0),"") -> Causa exemplo 9 | D73: 9 | E73: Participante 6 | G73: 9 | I73: 0 | J73: 9 | K73: 6
C74: =IFERROR(VLOOKUP(D74,'1_Causas_Levantadas'!C:D,2,0),"") -> Causa exemplo 10 | D74: 10 | E74: Participante 6 | G74: 10 | I74: 0 | J74: 10 | K74: 6
C75: =IFERROR(VLOOKUP(D75,'1_Causas_Levantadas'!C:D,2,0),"") -> Causa exemplo 11 | D75: 11 | E75: Participante 6 | G75: 11 | I75: 0 | J75: 11 | K75: 6
C76: =IFERROR(VLOOKUP(D76,'1_Causas_Levantadas'!C:D,2,0),"") -> Causa exemplo 12 | D76: 12 | E76: Participante 6 | G76: 12 | I76: 0 | J76: 12 | K76: 6
C77: =IFERROR(VLOOKUP(D77,'1_Causas_Levantadas'!C:D,2,0),"") -> Causa exemplo 1 | D77: 1 | E77: Participante 7 | G77: 1 | I77: 1 | J77: 1 | K77: 7
C78: =IFERROR(VLOOKUP(D78,'1_Causas_Levantadas'!C:D,2,0),"") -> Causa exemplo 2 | D78: 2 | E78: Participante 7 | G78: 2 | I78: 0 | J78: 2 | K78: 7
C79: =IFERROR(VLOOKUP(D79,'1_Causas_Levantadas'!C:D,2,0),"") -> Causa exemplo 3 | D79: 3 | E79: Participante 7 | G79: 3 | I79: 0 | J79: 3 | K79: 7
C80: =IFERROR(VLOOKUP(D80,'1_Causas_Levantadas'!C:D,2,0),"") -> Causa exemplo 4 | D80: 4 | E80: Participante 7 | G80: 4 | I80: 0 | J80: 4 | K80: 7
C81: =IFERROR(VLOOKUP(D81,'1_Causas_Levantadas'!C:D,2,0),"") -> Causa exemplo 5 | D81: 5 | E81: Participante 7 | G81: 5 | I81: 0 | J81: 5 | K81: 7
C82: =IFERROR(VLOOKUP(D82,'1_Causas_Levantadas'!C:D,2,0),"") -> Causa exemplo 6 | D82: 6 | E82: Participante 7 | G82: 6 | I82: 0 | J82: 6 | K82: 7
C83: =IFERROR(VLOOKUP(D83,'1_Causas_Levantadas'!C:D,2,0),"") -> Causa exemplo 7 | D83: 7 | E83: Participante 7 | G83: 7 | I83: 0 | J83: 7 | K83: 7
C84: =IFERROR(VLOOKUP(D84,'1_Causas_Levantadas'!C:D,2,0),"") -> Causa exemplo 8 | D84: 8 | E84: Participante 7 | G84: 8 | I84: 0 | J84: 8 | K84: 7
C85: =IFERROR(VLOOKUP(D85,'1_Causas_Levantadas'!C:D,2,0),"") -> Causa exemplo 9 | D85: 9 | E85: Participante 7 | G85: 9 | I85: 0 | J85: 9 | K85: 7
C86: =IFERROR(VLOOKUP(D86,'1_Causas_Levantadas'!C:D,2,0),"") -> Causa exemplo 10 | D86: 10 | E86: Participante 7 | G86: 10 | I86: 0 | J86: 10 | K86: 7
C87: =IFERROR(VLOOKUP(D87,'1_Causas_Levantadas'!C:D,2,0),"") -> Causa exemplo 11 | D87: 11 | E87: Participante 7 | G87: 11 | I87: 0 | J87: 11 | K87: 7
C88: =IFERROR(VLOOKUP(D88,'1_Causas_Levantadas'!C:D,2,0),"") -> Causa exemplo 12 | D88: 12 | E88: Participante 7 | G88: 12 | I88: 0 | J88: 12 | K88: 7
C89: =IFERROR(VLOOKUP(D89,'1_Causas_Levantadas'!C:D,2,0),"") -> 0 | G89: 1 | I89: 1 | J89: 1 | K89: 8
C90: =IFERROR(VLOOKUP(D90,'1_Causas_Levantadas'!C:D,2,0),"") -> 0 | G90: 2 | I90: 0 | J90: 2 | K90: 8
C91: =IFERROR(VLOOKUP(D91,'1_Causas_Levantadas'!C:D,2,0),"") -> 0 | G91: 3 | I91: 0 | J91: 3 | K91: 8
C92: =IFERROR(VLOOKUP(D92,'1_Causas_Levantadas'!C:D,2,0),"") -> 0 | G92: 4 | I92: 0 | J92: 4 | K92: 8
C93: =IFERROR(VLOOKUP(D93,'1_Causas_Levantadas'!C:D,2,0),"") -> 0 | G93: 5 | I93: 0 | J93: 5 | K93: 8
C94: =IFERROR(VLOOKUP(D94,'1_Causas_Levantadas'!C:D,2,0),"") -> 0 | G94: 6 | I94: 0 | J94: 6 | K94: 8
C95: =IFERROR(VLOOKUP(D95,'1_Causas_Levantadas'!C:D,2,0),"") -> 0 | G95: 7 | I95: 0 | J95: 7 | K95: 8
C96: =IFERROR(VLOOKUP(D96,'1_Causas_Levantadas'!C:D,2,0),"") -> 0 | G96: 8 | I96: 0 | J96: 8 | K96: 8
C97: =IFERROR(VLOOKUP(D97,'1_Causas_Levantadas'!C:D,2,0),"") -> 0 | G97: 9 | I97: 0 | J97: 9 | K97: 8
C98: =IFERROR(VLOOKUP(D98,'1_Causas_Levantadas'!C:D,2,0),"") -> 0 | G98: 10 | I98: 0 | J98: 10 | K98: 8
C99: =IFERROR(VLOOKUP(D99,'1_Causas_Levantadas'!C:D,2,0),"") -> 0 | G99: 11 | I99: 0 | J99: 11 | K99: 8
C100: =IFERROR(VLOOKUP(D100,'1_Causas_Levantadas'!C:D,2,0),"") -> 0 | G100: 12 | I100: 0 | J100: 12 | K100: 8
C101: =IFERROR(VLOOKUP(D101,'1_Causas_Levantadas'!C:D,2,0),"") -> 0 | G101: 1 | I101: 1 | J101: 1 | K101: 9
C102: =IFERROR(VLOOKUP(D102,'1_Causas_Levantadas'!C:D,2,0),"") -> 0 | G102: 2 | I102: 0 | J102: 2 | K102: 9
C103: =IFERROR(VLOOKUP(D103,'1_Causas_Levantadas'!C:D,2,0),"") -> 0 | G103: 3 | I103: 0 | J103: 3 | K103: 9
C104: =IFERROR(VLOOKUP(D104,'1_Causas_Levantadas'!C:D,2,0),"") -> 0 | G104: 4 | I104: 0 | J104: 4 | K104: 9
C105: =IFERROR(VLOOKUP(D105,'1_Causas_Levantadas'!C:D,2,0),"") -> 0 | G105: 5 | I105: 0 | J105: 5 | K105: 9
C106: =IFERROR(VLOOKUP(D106,'1_Causas_Levantadas'!C:D,2,0),"") -> 0 | G106: 6 | I106: 0 | J106: 6 | K106: 9
C107: =IFERROR(VLOOKUP(D107,'1_Causas_Levantadas'!C:D,2,0),"") -> 0 | G107: 7 | I107: 0 | J107: 7 | K107: 9
C108: =IFERROR(VLOOKUP(D108,'1_Causas_Levantadas'!C:D,2,0),"") -> 0 | G108: 8 | I108: 0 | J108: 8 | K108: 9
C109: =IFERROR(VLOOKUP(D109,'1_Causas_Levantadas'!C:D,2,0),"") -> 0 | G109: 9 | I109: 0 | J109: 9 | K109: 9
C110: =IFERROR(VLOOKUP(D110,'1_Causas_Levantadas'!C:D,2,0),"") -> 0 | G110: 10 | I110: 0 | J110: 10 | K110: 9
C111: =IFERROR(VLOOKUP(D111,'1_Causas_Levantadas'!C:D,2,0),"") -> 0 | G111: 11 | I111: 0 | J111: 11 | K111: 9
C112: =IFERROR(VLOOKUP(D112,'1_Causas_Levantadas'!C:D,2,0),"") -> 0 | G112: 12 | I112: 0 | J112: 12 | K112: 9
C113: =IFERROR(VLOOKUP(D113,'1_Causas_Levantadas'!C:D,2,0),"") -> 0 | G113: 1 | I113: 1 | J113: 1 | K113: 10
C114: =IFERROR(VLOOKUP(D114,'1_Causas_Levantadas'!C:D,2,0),"") -> 0 | G114: 2 | I114: 0 | J114: 2 | K114: 10
C115: =IFERROR(VLOOKUP(D115,'1_Causas_Levantadas'!C:D,2,0),"") -> 0 | G115: 3 | I115: 0 | J115: 3 | K115: 10
C116: =IFERROR(VLOOKUP(D116,'1_Causas_Levantadas'!C:D,2,0),"") -> 0 | G116: 4 | I116: 0 | J116: 4 | K116: 10
C117: =IFERROR(VLOOKUP(D117,'1_Causas_Levantadas'!C:D,2,0),"") -> 0 | G117: 5 | I117: 0 | J117: 5 | K117: 10
C118: =IFERROR(VLOOKUP(D118,'1_Causas_Levantadas'!C:D,2,0),"") -> 0 | G118: 6 | I118: 0 | J118: 6 | K118: 10
C119: =IFERROR(VLOOKUP(D119,'1_Causas_Levantadas'!C:D,2,0),"") -> 0 | G119: 7 | I119: 0 | J119: 7 | K119: 10
C120: =IFERROR(VLOOKUP(D120,'1_Causas_Levantadas'!C:D,2,0),"") -> 0 | G120: 8 | I120: 0 | J120: 8 | K120: 10
C121: =IFERROR(VLOOKUP(D121,'1_Causas_Levantadas'!C:D,2,0),"") -> 0 | G121: 9 | I121: 0 | J121: 9 | K121: 10
C122: =IFERROR(VLOOKUP(D122,'1_Causas_Levantadas'!C:D,2,0),"") -> 0 | G122: 10 | I122: 0 | J122: 10 | K122: 10
C123: =IFERROR(VLOOKUP(D123,'1_Causas_Levantadas'!C:D,2,0),"") -> 0 | G123: 11 | I123: 0 | J123: 11 | K123: 10
C124: =IFERROR(VLOOKUP(D124,'1_Causas_Levantadas'!C:D,2,0),"") -> 0 | G124: 12 | I124: 0 | J124: 12 | K124: 10
C125: =IFERROR(VLOOKUP(D125,'1_Causas_Levantadas'!C:D,2,0),"") -> 0 | G125: 1 | I125: 1 | J125: 1 | K125: 11
C126: =IFERROR(VLOOKUP(D126,'1_Causas_Levantadas'!C:D,2,0),"") -> 0 | G126: 2 | I126: 0 | J126: 2 | K126: 11
C127: =IFERROR(VLOOKUP(D127,'1_Causas_Levantadas'!C:D,2,0),"") -> 0 | G127: 3 | I127: 0 | J127: 3 | K127: 11
C128: =IFERROR(VLOOKUP(D128,'1_Causas_Levantadas'!C:D,2,0),"") -> 0 | G128: 4 | I128: 0 | J128: 4 | K128: 11
C129: =IFERROR(VLOOKUP(D129,'1_Causas_Levantadas'!C:D,2,0),"") -> 0 | G129: 5 | I129: 0 | J129: 5 | K129: 11
C130: =IFERROR(VLOOKUP(D130,'1_Causas_Levantadas'!C:D,2,0),"") -> 0 | G130: 6 | I130: 0 | J130: 6 | K130: 11
C131: =IFERROR(VLOOKUP(D131,'1_Causas_Levantadas'!C:D,2,0),"") -> 0 | G131: 7 | I131: 0 | J131: 7 | K131: 11
C132: =IFERROR(VLOOKUP(D132,'1_Causas_Levantadas'!C:D,2,0),"") -> 0 | G132: 8 | I132: 0 | J132: 8 | K132: 11
C133: =IFERROR(VLOOKUP(D133,'1_Causas_Levantadas'!C:D,2,0),"") -> 0 | G133: 9 | I133: 0 | J133: 9 | K133: 11
C134: =IFERROR(VLOOKUP(D134,'1_Causas_Levantadas'!C:D,2,0),"") -> 0 | D134: =IF(K134<=$H$4,(IF(G133>0,G134,$G$5)),"") ->  | E134: =IF(D134<>"","Participante "&K134,"") ->  | G134: =J134 -> 10 | I134: =IF(G134=$G$5,1,0) -> 0 | J134: 10 | K134: =I134+K133 -> 11
C135: =IFERROR(VLOOKUP(D135,'1_Causas_Levantadas'!C:D,2,0),"") -> 0 | G135: 11 | I135: 0 | J135: =IF(G134<$G$4,J134+1,1) -> 11 | K135: 11
C136: =IFERROR(VLOOKUP(D136,'1_Causas_Levantadas'!C:D,2,0),"") -> 0 | G136: 12 | I136: 0 | J136: 12 | K136: 11
C137: =IFERROR(VLOOKUP(D137,'1_Causas_Levantadas'!C:D,2,0),"") -> 0 | G137: 1 | I137: 1 | J137: 1 | K137: 12
C138: =IFERROR(VLOOKUP(D138,'1_Causas_Levantadas'!C:D,2,0),"") -> 0 | G138: 2 | I138: 0 | J138: 2 | K138: 12
C139: =IFERROR(VLOOKUP(D139,'1_Causas_Levantadas'!C:D,2,0),"") -> 0 | G139: 3 | I139: 0 | J139: 3 | K139: 12
C140: =IFERROR(VLOOKUP(D140,'1_Causas_Levantadas'!C:D,2,0),"") -> 0 | G140: 4 | I140: 0 | J140: 4 | K140: 12
C141: =IFERROR(VLOOKUP(D141,'1_Causas_Levantadas'!C:D,2,0),"") -> 0 | G141: 5 | I141: 0 | J141: 5 | K141: 12
C142: =IFERROR(VLOOKUP(D142,'1_Causas_Levantadas'!C:D,2,0),"") -> 0 | G142: 6 | I142: 0 | J142: 6 | K142: 12
C143: =IFERROR(VLOOKUP(D143,'1_Causas_Levantadas'!C:D,2,0),"") -> 0 | G143: 7 | I143: 0 | J143: 7 | K143: 12
C144: =IFERROR(VLOOKUP(D144,'1_Causas_Levantadas'!C:D,2,0),"") -> 0 | G144: 8 | I144: 0 | J144: 8 | K144: 12
C145: =IFERROR(VLOOKUP(D145,'1_Causas_Levantadas'!C:D,2,0),"") -> 0 | G145: 9 | I145: 0 | J145: 9 | K145: 12
C146: =IFERROR(VLOOKUP(D146,'1_Causas_Levantadas'!C:D,2,0),"") -> 0 | G146: 10 | I146: 0 | J146: 10 | K146: 12
C147: =IFERROR(VLOOKUP(D147,'1_Causas_Levantadas'!C:D,2,0),"") -> 0 | G147: 11 | I147: 0 | J147: 11 | K147: 12
C148: =IFERROR(VLOOKUP(D148,'1_Causas_Levantadas'!C:D,2,0),"") -> 0 | G148: 12 | I148: 0 | J148: 12 | K148: 12
C149: =IFERROR(VLOOKUP(D149,'1_Causas_Levantadas'!C:D,2,0),"") -> 0 | G149: 1 | I149: 1 | J149: 1 | K149: 13
C150: =IFERROR(VLOOKUP(D150,'1_Causas_Levantadas'!C:D,2,0),"") -> 0 | G150: 2 | I150: 0 | J150: 2 | K150: 13
C151: =IFERROR(VLOOKUP(D151,'1_Causas_Levantadas'!C:D,2,0),"") -> 0 | G151: 3 | I151: 0 | J151: 3 | K151: 13
C152: =IFERROR(VLOOKUP(D152,'1_Causas_Levantadas'!C:D,2,0),"") -> 0 | G152: 4 | I152: 0 | J152: 4 | K152: 13
C153: =IFERROR(VLOOKUP(D153,'1_Causas_Levantadas'!C:D,2,0),"") -> 0 | G153: 5 | I153: 0 | J153: 5 | K153: 13
C154: =IFERROR(VLOOKUP(D154,'1_Causas_Levantadas'!C:D,2,0),"") -> 0 | G154: 6 | I154: 0 | J154: 6 | K154: 13
C155: =IFERROR(VLOOKUP(D155,'1_Causas_Levantadas'!C:D,2,0),"") -> 0 | G155: 7 | I155: 0 | J155: 7 | K155: 13
C156: =IFERROR(VLOOKUP(D156,'1_Causas_Levantadas'!C:D,2,0),"") -> 0 | G156: 8 | I156: 0 | J156: 8 | K156: 13
C157: =IFERROR(VLOOKUP(D157,'1_Causas_Levantadas'!C:D,2,0),"") -> 0 | G157: 9 | I157: 0 | J157: 9 | K157: 13
C158: =IFERROR(VLOOKUP(D158,'1_Causas_Levantadas'!C:D,2,0),"") -> 0 | G158: 10 | I158: 0 | J158: 10 | K158: 13
C159: =IFERROR(VLOOKUP(D159,'1_Causas_Levantadas'!C:D,2,0),"") -> 0 | G159: 11 | I159: 0 | J159: 11 | K159: 13
C160: =IFERROR(VLOOKUP(D160,'1_Causas_Levantadas'!C:D,2,0),"") -> 0 | G160: 12 | I160: 0 | J160: 12 | K160: 13
C161: =IFERROR(VLOOKUP(D161,'1_Causas_Levantadas'!C:D,2,0),"") -> 0 | G161: 1 | I161: 1 | J161: 1 | K161: 14
C162: =IFERROR(VLOOKUP(D162,'1_Causas_Levantadas'!C:D,2,0),"") -> 0 | G162: 2 | I162: 0 | J162: 2 | K162: 14
C163: =IFERROR(VLOOKUP(D163,'1_Causas_Levantadas'!C:D,2,0),"") -> 0 | G163: 3 | I163: 0 | J163: 3 | K163: 14
C164: =IFERROR(VLOOKUP(D164,'1_Causas_Levantadas'!C:D,2,0),"") -> 0 | G164: 4 | I164: 0 | J164: 4 | K164: 14
C165: =IFERROR(VLOOKUP(D165,'1_Causas_Levantadas'!C:D,2,0),"") -> 0 | G165: 5 | I165: 0 | J165: 5 | K165: 14
C166: =IFERROR(VLOOKUP(D166,'1_Causas_Levantadas'!C:D,2,0),"") -> 0 | G166: 6 | I166: 0 | J166: 6 | K166: 14
C167: =IFERROR(VLOOKUP(D167,'1_Causas_Levantadas'!C:D,2,0),"") -> 0 | G167: 7 | I167: 0 | J167: 7 | K167: 14
C168: =IFERROR(VLOOKUP(D168,'1_Causas_Levantadas'!C:D,2,0),"") -> 0 | G168: 8 | I168: 0 | J168: 8 | K168: 14
C169: =IFERROR(VLOOKUP(D169,'1_Causas_Levantadas'!C:D,2,0),"") -> 0 | G169: 9 | I169: 0 | J169: 9 | K169: 14
C170: =IFERROR(VLOOKUP(D170,'1_Causas_Levantadas'!C:D,2,0),"") -> 0 | G170: 10 | I170: 0 | J170: 10 | K170: 14
C171: =IFERROR(VLOOKUP(D171,'1_Causas_Levantadas'!C:D,2,0),"") -> 0 | G171: 11 | I171: 0 | J171: 11 | K171: 14
C172: =IFERROR(VLOOKUP(D172,'1_Causas_Levantadas'!C:D,2,0),"") -> 0 | G172: 12 | I172: 0 | J172: 12 | K172: 14
C173: =IFERROR(VLOOKUP(D173,'1_Causas_Levantadas'!C:D,2,0),"") -> 0 | G173: 1 | I173: 1 | J173: 1 | K173: 15
C174: =IFERROR(VLOOKUP(D174,'1_Causas_Levantadas'!C:D,2,0),"") -> 0 | G174: 2 | I174: 0 | J174: 2 | K174: 15
C175: =IFERROR(VLOOKUP(D175,'1_Causas_Levantadas'!C:D,2,0),"") -> 0 | G175: 3 | I175: 0 | J175: 3 | K175: 15
C176: =IFERROR(VLOOKUP(D176,'1_Causas_Levantadas'!C:D,2,0),"") -> 0 | G176: 4 | I176: 0 | J176: 4 | K176: 15
C177: =IFERROR(VLOOKUP(D177,'1_Causas_Levantadas'!C:D,2,0),"") -> 0 | G177: 5 | I177: 0 | J177: 5 | K177: 15
C178: =IFERROR(VLOOKUP(D178,'1_Causas_Levantadas'!C:D,2,0),"") -> 0 | G178: 6 | I178: 0 | J178: 6 | K178: 15
C179: =IFERROR(VLOOKUP(D179,'1_Causas_Levantadas'!C:D,2,0),"") -> 0 | G179: 7 | I179: 0 | J179: 7 | K179: 15
C180: =IFERROR(VLOOKUP(D180,'1_Causas_Levantadas'!C:D,2,0),"") -> 0 | G180: 8 | I180: 0 | J180: 8 | K180: 15
C181: =IFERROR(VLOOKUP(D181,'1_Causas_Levantadas'!C:D,2,0),"") -> 0 | G181: 9 | I181: 0 | J181: 9 | K181: 15
C182: =IFERROR(VLOOKUP(D182,'1_Causas_Levantadas'!C:D,2,0),"") -> 0 | G182: 10 | I182: 0 | J182: 10 | K182: 15
C183: =IFERROR(VLOOKUP(D183,'1_Causas_Levantadas'!C:D,2,0),"") -> 0 | G183: 11 | I183: 0 | J183: 11 | K183: 15
C184: =IFERROR(VLOOKUP(D184,'1_Causas_Levantadas'!C:D,2,0),"") -> 0 | G184: 12 | I184: 0 | J184: 12 | K184: 15
C185: =IFERROR(VLOOKUP(D185,'1_Causas_Levantadas'!C:D,2,0),"") -> 0 | G185: 1 | I185: 1 | J185: 1 | K185: 16
C186: =IFERROR(VLOOKUP(D186,'1_Causas_Levantadas'!C:D,2,0),"") -> 0 | G186: 2 | I186: 0 | J186: 2 | K186: 16
C187: =IFERROR(VLOOKUP(D187,'1_Causas_Levantadas'!C:D,2,0),"") -> 0 | G187: 3 | I187: 0 | J187: 3 | K187: 16
C188: =IFERROR(VLOOKUP(D188,'1_Causas_Levantadas'!C:D,2,0),"") -> 0 | G188: 4 | I188: 0 | J188: 4 | K188: 16
C189: =IFERROR(VLOOKUP(D189,'1_Causas_Levantadas'!C:D,2,0),"") -> 0 | G189: 5 | I189: 0 | J189: 5 | K189: 16
C190: =IFERROR(VLOOKUP(D190,'1_Causas_Levantadas'!C:D,2,0),"") -> 0 | G190: 6 | I190: 0 | J190: 6 | K190: 16
C191: =IFERROR(VLOOKUP(D191,'1_Causas_Levantadas'!C:D,2,0),"") -> 0 | G191: 7 | I191: 0 | J191: 7 | K191: 16
C192: =IFERROR(VLOOKUP(D192,'1_Causas_Levantadas'!C:D,2,0),"") -> 0 | G192: 8 | I192: 0 | J192: 8 | K192: 16
C193: =IFERROR(VLOOKUP(D193,'1_Causas_Levantadas'!C:D,2,0),"") -> 0 | G193: 9 | I193: 0 | J193: 9 | K193: 16
C194: =IFERROR(VLOOKUP(D194,'1_Causas_Levantadas'!C:D,2,0),"") -> 0 | G194: 10 | I194: 0 | J194: 10 | K194: 16
C195: =IFERROR(VLOOKUP(D195,'1_Causas_Levantadas'!C:D,2,0),"") -> 0 | G195: 11 | I195: 0 | J195: 11 | K195: 16
C196: =IFERROR(VLOOKUP(D196,'1_Causas_Levantadas'!C:D,2,0),"") -> 0 | G196: 12 | I196: 0 | J196: 12 | K196: 16
C197: =IFERROR(VLOOKUP(D197,'1_Causas_Levantadas'!C:D,2,0),"") -> 0 | G197: 1 | I197: 1 | J197: 1 | K197: 17
C198: =IFERROR(VLOOKUP(D198,'1_Causas_Levantadas'!C:D,2,0),"") -> 0 | D198: =IF(K198<=$H$4,(IF(G197>0,G198,$G$5)),"") ->  | E198: =IF(D198<>"","Participante "&K198,"") ->  | G198: =J198 -> 2 | I198: =IF(G198=$G$5,1,0) -> 0 | J198: 2 | K198: =I198+K197 -> 17
C199: =IFERROR(VLOOKUP(D199,'1_Causas_Levantadas'!C:D,2,0),"") -> 0 | G199: 3 | I199: 0 | J199: =IF(G198<$G$4,J198+1,1) -> 3 | K199: 17
C200: =IFERROR(VLOOKUP(D200,'1_Causas_Levantadas'!C:D,2,0),"") -> 0 | G200: 4 | I200: 0 | J200: 4 | K200: 17
C201: =IFERROR(VLOOKUP(D201,'1_Causas_Levantadas'!C:D,2,0),"") -> 0 | G201: 5 | I201: 0 | J201: 5 | K201: 17
C202: =IFERROR(VLOOKUP(D202,'1_Causas_Levantadas'!C:D,2,0),"") -> 0 | G202: 6 | I202: 0 | J202: 6 | K202: 17
C203: =IFERROR(VLOOKUP(D203,'1_Causas_Levantadas'!C:D,2,0),"") -> 0 | G203: 7 | I203: 0 | J203: 7 | K203: 17
... 4797 more rows

Sheet 5_Verificar_Votos (hidden)
B4: Verifique os votos: | H4: Total causas | I4: =COUNTA('1_Causas_Levantadas'!$D$5:$D$200) -> 12
B5: 1. Verifique se a quantidade de votos está correta e compare as notas previstas com as reais. Caso os faróis estiverem verdes, siga para o próximo passo ("Causas Priorizadas"). Mas se os faróis estiverem vermelhos, clique em "Acertar votos". | H5: Causas/part | I5: =COUNTA('1_Causas_Levantadas'!$D$5:$D$200) -> 12 | P5: Soma | Q5: =I8*10+I9*5+I10*3 -> 58
I7: devem ter/partic | J7: Devem ter total | K7: têm | L7: check | P7: Participante 1 | Q7: =SUMIF('4_Base_votacao'!E5:E5000,'5_Verificar_Votos'!P7,'4_Base_votacao'!F5:F5000) -> 63 | R7: =IF(Q7=$Q$5,1,0) -> 0
E8: =L8 -> 0 | H8: Notas 10 | I8: =ROUNDDOWN(I5*20%,0) -> 2 | J8: =I8*'2_Notas_votacao'!C9 -> 14 | K8: =COUNTIF('4_Base_votacao'!F:F,10) -> 3 | L8: =IF(K8=J8,1,0) -> 0 | P8: Participante 2 | Q8: =SUMIF('4_Base_votacao'!E6:E5001,'5_Verificar_Votos'!P8,'4_Base_votacao'!F6:F5001) -> 0 | R8: =IF(Q8=$Q$5,1,0) -> 0
E9: =L9 -> 0 | H9: Notas 5 | I9: =ROUND(I5*30%,0) -> 4 | J9: =I9*'2_Notas_votacao'!C9 -> 28 | K9: =COUNTIF('4_Base_votacao'!F:F,5) -> 3 | L9: =IF(K9=J9,1,0) -> 0 | P9: Participante 3 | Q9: =SUMIF('4_Base_votacao'!E7:E5002,'5_Verificar_Votos'!P9,'4_Base_votacao'!F7:F5002) -> 0 | R9: 0
E10: =L10 -> 0 | H10: Notas 3 | I10: =I5-SUM(I8:I9) -> 6 | J10: =I10*'2_Notas_votacao'!C9 -> 42 | K10: =COUNTIF('4_Base_votacao'!F:F,3) -> 6 | L10: =IF(K10=J10,1,0) -> 0 | P10: Participante 4 | Q10: =SUMIF('4_Base_votacao'!E8:E5003,'5_Verificar_Votos'!P10,'4_Base_votacao'!F8:F5003) -> 0 | R10: 0
P11: Participante 5 | Q11: =SUMIF('4_Base_votacao'!E9:E5004,'5_Verificar_Votos'!P11,'4_Base_votacao'!F9:F5004) -> 0 | R11: 0
P12: Participante 6 | Q12: =SUMIF('4_Base_votacao'!E10:E5005,'5_Verificar_Votos'!P12,'4_Base_votacao'!F10:F5005) -> 0 | R12: 0
B13: 2. Verifique qual participante está com o número de votos incorreto. | P13: Participante 7 | Q13: =SUMIF('4_Base_votacao'!E11:E5006,'5_Verificar_Votos'!P13,'4_Base_votacao'!F11:F5006) -> 0 | R13: 0
P14: Participante 8 | Q14: =SUMIF('4_Base_votacao'!E12:E5007,'5_Verificar_Votos'!P14,'4_Base_votacao'!F12:F5007) -> 0 | R14: 0
P15: Participante 9 | Q15: =SUMIF('4_Base_votacao'!E13:E5008,'5_Verificar_Votos'!P15,'4_Base_votacao'!F13:F5008) -> 0 | R15: 0
C16: =IF(Q7<>0,P7,"") -> Participante 1 | D16: =IF(Q7<>0,R7,"") -> 0 | H16: =IF(I16="","",IF(I16=$Q$5,1,0)) ->  | I16: =IFERROR(VLOOKUP(C16,#REF!,2,0),"") ->  | P16: Participante 10 | Q16: =SUMIF('4_Base_votacao'!E14:E5009,'5_Verificar_Votos'!P16,'4_Base_votacao'!F14:F5009) -> 0 | R16: 0
C17: =IF(Q8<>0,P8,"") ->  | D17: =IF(Q8<>0,R8,"") ->  | I17: =IFERROR(VLOOKUP(C17,#REF!,2,0),"") ->  | P17: Participante 11 | Q17: =SUMIF('4_Base_votacao'!E15:E5010,'5_Verificar_Votos'!P17,'4_Base_votacao'!F15:F5010) -> 0 | R17: 0
I18: =IFERROR(VLOOKUP(C18,#REF!,2,0),"") ->  | P18: Participante 12 | Q18: =SUMIF('4_Base_votacao'!E16:E5011,'5_Verificar_Votos'!P18,'4_Base_votacao'!F16:F5011) -> 0 | R18: 0
I19: =IFERROR(VLOOKUP(C19,#REF!,2,0),"") ->  | P19: Participante 13 | Q19: =SUMIF('4_Base_votacao'!E17:E5012,'5_Verificar_Votos'!P19,'4_Base_votacao'!F17:F5012) -> 0 | R19: 0
I20: =IFERROR(VLOOKUP(C20,#REF!,2,0),"") ->  | P20: Participante 14 | Q20: =SUMIF('4_Base_votacao'!E18:E5013,'5_Verificar_Votos'!P20,'4_Base_votacao'!F18:F5013) -> 0 | R20: 0
I21: =IFERROR(VLOOKUP(C21,#REF!,2,0),"") ->  | P21: Participante 15 | Q21: =SUMIF('4_Base_votacao'!E19:E5014,'5_Verificar_Votos'!P21,'4_Base_votacao'!F19:F5014) -> 0 | R21: 0
I22: =IFERROR(VLOOKUP(C22,#REF!,2,0),"") -> 
I23: =IFERROR(VLOOKUP(C23,#REF!,2,0),"") -> 
I24: =IFERROR(VLOOKUP(C24,#REF!,2,0),"") -> 
I25: =IFERROR(VLOOKUP(C25,#REF!,2,0),"") -> 
I26: =IFERROR(VLOOKUP(C26,#REF!,2,0),"") -> 
I27: =IFERROR(VLOOKUP(C27,#REF!,2,0),"") -> 
I28: =IFERROR(VLOOKUP(C28,#REF!,2,0),"") -> 
I29: =IFERROR(VLOOKUP(C29,#REF!,2,0),"") -> 
I30: =IFERROR(VLOOKUP(C30,#REF!,2,0),"") -> 
D31: =H31 ->  | I31: =IFERROR(VLOOKUP(C31,#REF!,2,0),"") -> 
I32: =IFERROR(VLOOKUP(C32,#REF!,2,0),"") -> 
I33: =IFERROR(VLOOKUP(C33,#REF!,2,0),"") -> 
I34: =IFERROR(VLOOKUP(C34,#REF!,2,0),"") -> 
I35: =IFERROR(VLOOKUP(C35,#REF!,2,0),"") -> 
I36: =IFERROR(VLOOKUP(C36,#REF!,2,0),"") -> 
I37: =IFERROR(VLOOKUP(C37,#REF!,2,0),"") -> 
I38: =IFERROR(VLOOKUP(C38,#REF!,2,0),"") -> 
I39: =IFERROR(VLOOKUP(C39,#REF!,2,0),"") -> 
I40: =IFERROR(VLOOKUP(C40,#REF!,2,0),"") -> 
I41: =IFERROR(VLOOKUP(C41,#REF!,2,0),"") -> 
I42: =IFERROR(VLOOKUP(C42,#REF!,2,0),"") -> 
I43: =IFERROR(VLOOKUP(C43,#REF!,2,0),"") -> 
I44: =IFERROR(VLOOKUP(C44,#REF!,2,0),"") -> 
I45: =IFERROR(VLOOKUP(C45,#REF!,2,0),"") -> 
I46: =IFERROR(VLOOKUP(C46,#REF!,2,0),"") -> 
I47: =IFERROR(VLOOKUP(C47,#REF!,2,0),"") -> 
H48: =IF(I48="","",IF(I48=$Q$5,1,0)) ->  | I48: =IFERROR(VLOOKUP(C48,#REF!,2,0),"") -> 
I49: =IFERROR(VLOOKUP(C49,#REF!,2,0),"") -> 
I50: =IFERROR(VLOOKUP(C50,#REF!,2,0),"") -> 
I51: =IFERROR(VLOOKUP(C51,#REF!,2,0),"") -> 
I52: =IFERROR(VLOOKUP(C52,#REF!,2,0),"") -> 
I53: =IFERROR(VLOOKUP(C53,#REF!,2,0),"") -> 
I54: =IFERROR(VLOOKUP(C54,#REF!,2,0),"") -> 
I55: =IFERROR(VLOOKUP(C55,#REF!,2,0),"") -> 
I56: =IFERROR(VLOOKUP(C56,#REF!,2,0),"") -> 
I57: =IFERROR(VLOOKUP(C57,#REF!,2,0),"") -> 
I58: =IFERROR(VLOOKUP(C58,#REF!,2,0),"") -> 
I59: =IFERROR(VLOOKUP(C59,#REF!,2,0),"") -> 
I60: =IFERROR(VLOOKUP(C60,#REF!,2,0),"") -> 
I61: =IFERROR(VLOOKUP(C61,#REF!,2,0),"") -> 
I62: =IFERROR(VLOOKUP(C62,#REF!,2,0),"") -> 
I63: =IFERROR(VLOOKUP(C63,#REF!,2,0),"") -> 
I64: =IFERROR(VLOOKUP(C64,#REF!,2,0),"") -> 
I65: =IFERROR(VLOOKUP(C65,#REF!,2,0),"") -> 
I66: =IFERROR(VLOOKUP(C66,#REF!,2,0),"") -> 
I67: =IFERROR(VLOOKUP(C67,#REF!,2,0),"") -> 
I68: =IFERROR(VLOOKUP(C68,#REF!,2,0),"") -> 
I69: =IFERROR(VLOOKUP(C69,#REF!,2,0),"") -> 
H70: =IF(#REF!="","",IF(#REF!=$Q$5,1,0)) ->  | I70: =IFERROR(VLOOKUP(C70,#REF!,2,0),"") -> 
H71: =IF(#REF!="","",IF(#REF!=$Q$5,1,0)) ->  | I71: =IFERROR(VLOOKUP(C71,#REF!,2,0),"") -> 
H72: =IF(#REF!="","",IF(#REF!=$Q$5,1,0)) ->  | I72: =IFERROR(VLOOKUP(C72,#REF!,2,0),"") -> 
I73: =IFERROR(VLOOKUP(C73,#REF!,2,0),"") -> 
I74: =IFERROR(VLOOKUP(C74,#REF!,2,0),"") -> 
I75: =IFERROR(VLOOKUP(C75,#REF!,2,0),"") -> 
I76: =IFERROR(VLOOKUP(C76,#REF!,2,0),"") -> 
I77: =IFERROR(VLOOKUP(C77,#REF!,2,0),"") -> 
I78: =IFERROR(VLOOKUP(C78,#REF!,2,0),"") -> 
I79: =IFERROR(VLOOKUP(C79,#REF!,2,0),"") -> 
I80: =IFERROR(VLOOKUP(C80,#REF!,2,0),"") -> 
I81: =IFERROR(VLOOKUP(C81,#REF!,2,0),"") -> 
I82: =IFERROR(VLOOKUP(C82,#REF!,2,0),"") -> 
I83: =IFERROR(VLOOKUP(C83,#REF!,2,0),"") -> 
I84: =IFERROR(VLOOKUP(C84,#REF!,2,0),"") -> 
I85: =IFERROR(VLOOKUP(C85,#REF!,2,0),"") -> 
I86: =IFERROR(VLOOKUP(C86,#REF!,2,0),"") -> 
I87: =IFERROR(VLOOKUP(C87,#REF!,2,0),"") -> 

Sheet 6_Causas_Priorizadas (hidden)
C3: Nota-Corte: | D3: =IFERROR(MIN('2_Notas_votacao'!$C$9*5,LARGE($C$5:$C$100,6)),"") -> 5
B4: Causa | C4: Soma de Nota | D4: Priorizado
B5: Causa exemplo 2 | C5: 10 | D5: =IF(OR(B5="",B5="Total Geral"),"",IF(C5>=$D$3,"Sim","Não")) -> Sim
B6: Causa exemplo 1 | C6: 10 | D6: Sim
B7: Causa exemplo 3 | C7: 10 | D7: Sim
B8: Causa exemplo 5 | C8: 5 | D8: Sim
B9: Causa exemplo 4 | C9: 5 | D9: Sim
B10: Causa exemplo 6 | C10: 5 | D10: Sim
B11: Causa exemplo 10 | C11: 3 | D11: Não
B12: Causa exemplo 12 | C12: 3 | D12: Não
B13: Causa exemplo 11 | C13: 3 | D13: Não
B14: Causa exemplo 8 | C14: 3 | D14: Não
B15: Causa exemplo 7 | C15: 3 | D15: Não
B16: Causa exemplo 9 | C16: 3 | D16: Não
B17: Total Geral | C17: 63
D69: =IF(OR(B69="",B69="Total Geral"),"",IF(C69>=$D$3,"Sim","Não")) -> 

Sheet Habilitar Macro

Sheet Ajuda
